Workbook

Sheet Übersicht
G3: DIN 1185 | H3: TGL 42 812 / 07 | I3: Ernst | J3: Instationär, fallender Wasserspiegel
G4: Hooghoudt / Ernst
B5: Homogener Grundwasserleiter | G5: x | H5: Ansatz 1/2 | I5: Fall A
B7: Zweischichtiger Grundwasserleiter
B8: Schichtgrenze in Dräntiefe | G8: x | H8: Ansatz 3 | I8: Fall B
B13: Drän in unterer Schicht | G13: x ? | H13: Ansatz 5 | I13: Fall B
B18: Drän in oberer Schicht | H18: Ansatz 4 | I18: Fall C
B23: Homogene Deckschicht über gespanntem Grundwasserleiter | H23: Ansatz 6

Sheet Hooghoudt&Ernst
A1: Dränabstandsberechnung nach DIN 1185 Blatt 2 (s. DIN TB Wasserbau 2)
A2: Ansatz | B2: Bedingungen | D2: Berechnungsgleichungen | I2: geohydraulisches Schema
A4: Hooghoudt | B4: Schichtgrenze
A5: & Ernst | B5: in oder oberhalb
B6: Dräntiefe
B8: (Wenn die Schicht-
B9: grenze unterhalb
B10: der Dräntiefe liegt,
B11: Berechnung
B12: nach TGL 42 812/07
B13: Ansatz 4 (Ernst))
E19: Die Variablen im grünen Feld sind einzugeben
C20: wirksamer Außenradius | D20: r_ = | E20: 0.05 | F20: m
C21: Abst. OKG - GW-Stauer D | D21: D = | E21: 6 | F21: m
C22: Dräntiefe tD | D22: tD = | E22: 1 | F22: m
C23: Entwässerungstiefe tE | D23: tE = | E23: 0.5 | F23: m
C24: gesätt. hydraul. Leitf. ko | D24: ko = | E24: 0.5 | F24: m/d
C25: gesätt. hydraul. Leitf. ku | D25: ku = | E25: 0.5 | F25: m/d
C26: Dränabflußspende q | D26: q = | E26: 0.0065 | F26: m/d
D27: lU = | E27: =r_*PI() -> 0.1570796327 | F27: m, der benetzte Umfang muss hier eingetragen werden, falls er
F28: anders berechnet werden soll als "lU = r_*PI()"
C29: geohydraul. Druckhöhe hS | D29: hS = | E29: =tD-tE-r_ -> 0.45 | F29: m
C30: Abstand GW-Stauer - Drän D0 | D30: D0 = | E30: =D-tE-hS -> 5.05 | F30: m
C31: Kriterium a/4 | D31: kri = | E31: =a/4 -> 5.75
C33: Mächtigkeit der Äquivalentschicht | D33: de = | E33: =IF(D0<kri,D0/(8*D0/PI()/a*LN(D0/lU)+1),PI()*a/(8*LN(a/lU))) -> 1.71747754 | F33: m
C35: Iterative Lösung mit der | E35: Zielzelle | G35: Zielwert
C36: Zielwertsuche von EXCEL | E36: =(8*ku*de*hS/q+4*ko*hS^2/q)^0.5-ahe -> 0.1930346724 | F36: = Null | G36: 0 | J36: (8*ku*df*hS/q+4*ko*hS^2/q)^0.5-ahe
E37: mögliche veränderbare Zelle
B38: Dränabstand nach | E38: 23
B39: Hooghoudt/Ernst: | D39: a = | E39: =ahe -> 23 | F39: m

Sheet 1,2 homogen
A1: Dränabstandsbestimmung nach TGL 42812/07 - Homogener Grundwasserleiter
A2: Ansatz | B2: Bedingungen | D2: Berechnungsgleichungen | I2: geohydraulisches Schema
A4: 1) | B4: Bed.1: D0 = 0
B6: Bed.2: k >= 0.2m/d
E8: Die Variablen im grünen Feld sind einzugeben
C9: Abst. OKG - GW-Stauer = Dräntiefe | D9: tD = | E9: 1.1 | F9: m
C10: Entwässerungstiefe tE | D10: tE = | E10: 0.6 | F10: m
C11: Dränabflußspende | D11: q = | E11: 0.007 | F11: m/d
C12: gesätt. hydraul. Leitfähigkeit | D12: k = | E12: 1.5 | F12: m/d
C13: Dränrohrradius | D13: r = | E13: 0.1 | F13: m
C14: Redukt.fakt. f. benetzten Umf. | D14: gamma = | E14: 0.1 | F14: an Dränrohren
C15: geohydraul. Druckhöhe hS | D15: hS = | E15: =tD-tE-_r*2 -> 0.3 | F15: m
E16: =hS/(1/2*SQRT(q/k)-q*LN(gamma)/(PI()*k)) -> 7.983634894
C17: Dränabstand Ansatz 1 | D17: a = | E17: =IF(k>=0.2,a_3,"s.Bed.2!") -> 7.983634894 | F17: m
A19: 2a) | B19: Bed.1: D0 <= 0.25a
C35: Abst. OKG - GW-Stauer D | D35: D = | E35: 4 | F35: m
C36: eff. benetzter Umfang Ue | D36: Ue = | E36: =(2*_r+2)*PI()*gamma -> 0.6911503838 | F36: m
C37: Mächtigkeit D0 | D37: D0 = | E37: =D-hS-tE -> 3.1 | F37: m
D38: b = | E38: 1
D39: D_1 = | E39: =hS/2+D0 -> 3.25 | F39: m
D40: c = | E40: =2/PI()*LN(b*D0/Ue) -> 0.9554389278
E42: =2*D_1*(SQRT(_c^2+hS/D_1*(2*k/q-1))-_c) -> 35.09457472
C43: Dränabstand Ansatz 2a | D43: a = | E43: =IF(D0>0.25*a_4,"s.Bed.1!",a_4) -> 35.09457472 | F43: m
A47: 2b) | B47: Bed.1: D0 > 0.25a
C53: Iterative Lösung mit der | E53: Zielzelle | G53: Zielwert
C54: Zielwertsuche von EXCEL | D54: Null = | E54: =PI()*k*hS/q/LN(a_5/Ue)-a_5 -> 9.764841768 | G54: 0
E56: veränderbare Zelle
E57: 40
C58: Dränabstand Ansatz 2b | D58: a = | E58: =IF(D0>a_5/4,a_5,"s.Bed.1!") -> s.Bed.1! | F58: m

Sheet 3 Drän auf Sch.-Grenze
A1: Dränabstandsbest. (TGL 42812/07) - zweischichtiger Grundwasserleiter, Schichtgrenze in Dräntiefe
A2: Ansatz | B2: Bedingungen | D2: Berechnungsgleichungen | H2: geohydraulisches Schema
E4: Die Variablen im grünen Feld sind eizugeben
C5: Dränabflußspende | D5: q | E5: 0.007 | F5: m/d
C6: Abst. OKG - GW-Stauer | D6: D | E6: 4 | F6: m/d
C7: Dräntiefe tD | D7: tD | E7: 1.1 | F7: m
C8: Entwässerungstiefe tE | D8: tE | E8: 0.6 | F8: m
C9: hydraul. Leitfähigkeit. ob. Sch. ko | D9: ko | E9: 2 | F9: m/d
C10: hydraul. Leitfähigkeit unt. Sch. ku | D10: ku | E10: 1 | F10: m/d
C11: Dränrohrradius r | D11: r | E11: 0.1 | F11: m
C12: Red.fakt. f. benetzten Umf. | D12: gamma | E12: 1
C13: Mächtigkeit unt. Schicht D0 | D13: D0 | E13: =D-tE-hS -> 3.1 | F13: m
C14: geohydraul. Druckhöhe hS | D14: hS | E14: =tD-tE-2*_r -> 0.3 | F14: m
A15: 3.1 | B15: Bed.1: ko/ku >= 0.1
A16: 3.1 a) | B16: Bed.2: D0 <= 0.25a
C21: Iterative Lösung mit der | E21: Zielzelle | G21: Zielwert
C22: Zielwertsuche von EXCEL | E22: =2*SQRT(hS/q*(ko*hS+2*ku*D0/(1+4*D0/a_1*(_c+0.32))))-a_1 -> 2.042460778e-07 | F22: = Null | G22: 0
C23: wegen D2=f(a)
E24: veränderbare Zelle
E25: 27.71369188
C26: Dränabstand Ansatz 3.1 a) | D26: a = | E26: =IF(ko/ku<0.1,"s.Bed.1!",IF(D0>0.25*a_1,"s.Bed.2!",a_1)) -> 27.71369188 | F26: m
A28: 3.2 | B28: Bed.1: ko/ku < 0.1
A29: 3.2 a) | B29: Bed.2: D0 <= 0.25a
C35: Iterative Lösung mit der | E35: Zielzelle
C36: Zielwertsuche von EXCEL | E36: =2*SQRT(2*D0/(1+4*D0/a_2*(_c+0.32))*hS*ku/ko*(ko/q-1))-a_2 -> -3.878763631 | F36: = Null | G36: Zielwert
C37: wegen D2=f(a) | G37: 0
E38: veränderbare Zelle
E39: 30
C40: Dränabstand Ansatz 3.2 a) | D40: a = | E40: =IF(ko/ku>=0.1,"s.Bed.1.!",IF(D0>0.25*a_2,"s.Bed.2!",a_2)) -> s.Bed.1.! | F40: m
C60: eff. benetzter Umfang Ue | D60: Ue | E60: =2*_r*PI()*gamma -> 0.6283185307 | F60: m
D61: b | E61: =1 -> 1
D62: c | E62: =2/PI()*LN(b*D0/Ue) -> 1.016115273
A63: 3 b) | B63: Bed.2: D0 > 0.25a
C72: Iterative Lösung mit der | E72: Zielzelle | G72: Zielwert
C73: Zielwertsuche von EXCEL | E73: =PI()*ku*hS/q/LN(a_6/Ue)-a_6 -> 4.827464962 | F73: = Null | G73: 0
E75: veränderbare Zelle
E76: 30
C77: Dränabstand Ansatz 3 b) | D77: a | E77: =IF(D0>a_6/4,a_6,"s.Bed.2") -> s.Bed.2 | F77: m

Sheet 4 Drän in ob. Sch.
A1: Dränabstand (TGL 42812/07) - Zweischichtiger Grundwasserleiter, Schichtgrenze unterhalb Dräntiefe
A2: Ansatz | B2: Bedingungen | D2: Berechnungsgleichungen | L2: geohydraulisches Schema
A5: 4.1 | B5: ko/ku >= 0.1
J17: 3
C31: Tab. 1 b-Werte:
D32: Du/D0
C33: ku/ko | D33: 0.1 | E33: 0.25 | F33: 0.5 | G33: 1 | H33: 2 | I33: 4 | J33: 7 | K33: 10 | L33: 16
C34: 0.1 | D34: 1 | E34: 1 | F34: 1 | G34: 1 | H34: 1.5 | I34: 2 | J34: 4 | K34: 15 | L34: 120
C35: 0.25 | D35: 1 | E35: 1 | F35: 1 | G35: 1.5 | H35: 2 | I35: 4 | J35: 10 | K35: 20 | L35: 90
C36: 0.5 | D36: 1 | E36: 1 | F36: 1.5 | G36: 1.5 | H36: 2.5 | I36: 5 | J36: 10 | K36: 20 | L36: 40
C37: 1 | D37: 1 | E37: 1.5 | F37: 1.5 | G37: 2 | H37: 3 | I37: 5 | J37: 8 | K37: 10 | L37: 15
C38: 2 | D38: 1 | E38: 1.5 | F38: 2 | G38: 2.5 | H38: 3 | I38: 5 | J38: 6 | K38: 8 | L38: 8
C39: 4 | D39: 1.5 | E39: 1.5 | F39: 2 | G39: 2.5 | H39: 3 | I39: 4 | J39: 5 | K39: 5 | L39: 6
C40: 10 | D40: 2 | E40: 2 | F40: 3 | G40: 3 | H40: 4 | I40: 4 | J40: 5 | K40: 5 | L40: 4.5
C41: 30 | D41: 3 | E41: 3 | F41: 3 | G41: 4 | H41: 4 | I41: 4 | J41: 4 | K41: 4 | L41: 4
H44: Die Variablen im grünen Feld sind einzugeben
C45: Dränabflußspende | G45: q | H45: 0.007 | I45: m/d
C46: Mächtigkeit ob. Schicht Dob | G46: Dob | H46: 2 | I46: m
C47: Mächtigkeit der unt. Schicht Du | G47: Du | H47: 2 | I47: m
C48: hydraul. Leitf. ob. Schicht ko | G48: ko | H48: 2 | I48: m/d
C49: hydraul. Leitf. unt. Schicht ku | G49: ku | H49: 1 | I49: m/d | J49: ku/ko = | K49: =ku/ko -> 0.5
C50: Mächtigkeit D0 | G50: D0 | H50: =Dob-hS-tE -> 1.1 | I50: m | J50: Du/D0 = | K50: =Du/D0 -> 1.818181818
C51: b-Wert nach Tab.1 | G51: b | H51: 5
C52: Dränrohrtiefe tD | G52: tD | H52: 1.1 | I52: m
C53: Entwässerungstiefe tE | G53: tE | H53: 0.6 | I53: m
C54: Dränrohrradius r | G54: r | H54: 0.1 | I54: m
C55: Red.fakt. ben. Umfang | G55: gamma | H55: 0.2
C56: geohydraul. Druckhöhe hS | G56: hS | H56: =tD-tE-2*_r -> 0.3 | I56: m
C57: eff. benetzter Umfang Ue | G57: Ue | H57: =2*_r*PI()*gamma -> 0.1256637061 | I57: m
A58: 4.1 | B58: ko/ku >= 0.1 | G58: b | H58: 1 | I58: nach Tab.1 auf Tabellenblatt "Ernst C"
G59: D_4 | H59: =hS/2+D0+Du*ku/ko -> 2.25
G60: c | H60: =2/PI()*LN(b*D0/Ue) -> 2.405718658
H61: =2*D_4*(SQRT(_c^2+hS/D_4*(2*ko/q-1))-_c) -> 29.88487471
F62: Dränabstand Ansatz 4.1 | G62: a = | H62: =IF(ko/ku<0.1,"s.Bed.!",a_7) -> 29.88487471 | I62: m
A63: 4.2 | B63: ko/ku < 0.1
G72: D_5 | H72: =D0+Du*ku/ko -> 2.1
H73: =2*D_5*(SQRT(_c^2+hS/D_5*(2*ko/q+q/ko-3))-_c) -> 29.06918685
F74: Dränabstand Ansatz 4.2 | G74: a = | H74: =IF(ko/ku>=0.1,"s.Bed.",a_8) -> s.Bed. | I74: m

Sheet 5 Drän in unt. Sch.
A1: Dränabstand (TGL 42812/07) - Zweischichtiger Grundwasserleiter, Schichtgrenze oberhalb Dräntiefe
A2: Ansatz | B2: Bedingungen | D2: Berechnungsgleichungen | I2: geohydraulisches Schema
A4: 5 | B4: ko/ku < 0.1
F24: Die Variablen im grünen Feld sind einzugeben
C25: Dränabflußspende | E25: q | F25: 0.007 | G25: m/d
C26: hydraul. Leitf. ob. Schicht ko | E26: ko | F26: 0.1 | G26: m/d
C27: hydraul. Leitf. unt. Schicht ku | E27: ku | F27: 2 | G27: m/d
C28: Mächtigkeit ob. Schicht Dob | E28: Dob | F28: 1 | G28: m
C29: Mächtigkeit der unt. Schicht Du | E29: Du | F29: 2 | G29: m
C30: Dränrohrtiefe tD | E30: tD | F30: 1.2 | G30: m
C31: Entwässerungstiefe tE | E31: tE | F31: 0.6 | G31: m
C32: Dränrohrradius r | E32: r | F32: 0.1 | G32: m
C33: Red.fakt. Ben. Umfang | E33: gamma | F33: 0.2
C34: Mächtigkeit D0 | E34: D0 | F34: =Dob+Du-tE-hS -> 2 | G34: m
C35: Mächtigkeit D* | E35: D* | F35: =Du-D0 -> 0 | G35: m
C36: geohydraul. Druckhöhe hS | E36: hS | F36: =tD-tE-2*_r -> 0.4 | G36: m
C37: eff. benetzter Umfang Ue | E37: Ue | F37: =2*_r*PI()*gamma -> 0.1256637061 | G37: m
E39: c | F39: =2/PI()*LN(1*D0/Ue) -> 1.761713516
F40: =2*Du*(SQRT(_c^2+2*ku/ko*(hS*(ko/q-2)+D)/Du)-_c) -> 33.2300572
D41: Dränabstand Ansatz 5 | E41: a = | F41: =IF(ko/ku<0.1,a,"s.Bed.!") -> 33.2300572 | G41: m

Sheet 6 gespannter GWL
A1: Dränabstand (TGL 42812/07) - Homogene Deckschicht über gespanntem Grundwasserleiter
A2: Ansatz | B2: Bedingungen | D2: Berechnungsgleichungen | K2: geohydraulisches Schema
A7: 6
A8: 6.1 | B8: D0 <= 0.33a
H24: Die Variablen im grünen Feld sind einzugeben
C25: Dränabflußspende | G25: q | H25: 0.015 | I25: m/d
C26: ges.hydraulische Leitfähigkeit | G26: k | H26: 0.7 | I26: m/d
C27: Mächtigkeit D0 | G27: D0 | H27: 5 | I27: m
C28: Druckhöhe des gesp. GW über Drän DH | G28: deltaH | H28: 0.5 | I28: m
C29: erwünschter GW-Spiegel über Drän hS | G29: hS | H29: 0.5 | I29: m
C30: Reduktionsfakt. f. ben. Umfang g | G30: gamma | H30: 0.15 | I30: s. Tabellenblatt "1,2 homogen"
C31: Aussendurchmesser da | G31: da | H31: 0.2 | I31: m
G33: deltaHstern | H33: =(deltaH+q*D0/k)/hS -> 1.214285714
G34: QL | H34: =PI()*k*deltaHstern*hS/LN(8*D0/PI()/SQRT(2*gamma*da*(hS+gamma*da))) -> 0.3128127674
H35: =4*D0/PI()*LN(4/TANH((PI()*(deltaHstern-1)*k*hS/QL))) -> 11.69577811
C36: Dränabstand Ansatz 6.1 | G36: a = | H36: =IF(D0>0.33*a_11,"s.Bed.!",a_11) -> s.Bed.! | I36: m
A41: 6.2 | B41: D0 > 0.33a
F60: dstern | G60: =SQRT(2*gamma*da*(deltaH+gamma*da)) -> 0.178325545 | H60: m
C62: Iterative Lösung mit der | G62: Zielzelle | I62: Zielwert
C63: Zielwertsuche von EXCEL | G63: =PI()*D0/(LN(2)+(deltaHstern-1)*LN(2*a_22/(PI()*dstern)))-a_22 -> -5.794493774e-10 | H63: = Null | I63: 0
G65: veränderbare Zelle
C66: Dränabstand Ansatz 6.2 | G66: 10.66377004
F67: a = | G67: =IF(D0>0.33*a_22,a_22,"s.Bed.!") -> 10.66377004 | H67: m

Sheet Ernst A
A1: Dränabstandsberechnung nach Ernst (Studienblatt Nr. 12 1970, ETH Zürich)
A2: Ansatz | B2: Bedingungen | D2: Berechnungsgleichungen | I2: geohydraulisches Schema
A4: ERNST | B4: homogen
A5: Fall A
B6: D0 < 1/4 a
F20: Variablen in grünen Feldern eingeben !
C21: Dränabflußspende q | E21: q = | F21: 0.007 | G21: m/d
C23: gesätt. hydraul. Leitf. k | E23: k = | F23: 1 | G23: m/d
C24: Dräntiefe tD | E24: tD = | F24: 1.1 | G24: m
C25: Entwässerungstiefe tE | E25: tE = | F25: 0.6 | G25: m | I25: Ue = | J25: =PI()*(2*_r)*gamma -> 0.1256637061
C26: Dränrohrradius | E26: r = | F26: 0.1 | G26: m
C27: Reduktionsfaktor für benetz. Umfang | E27: gamma = | F27: 0.2 | I27: hh = | J27: =q/(8*k*D1_)*ac^2 -> 0.1381818173
C28: Abst. OKG - GW-Stauer D | E28: D = | F28: 4 | G28: m | I28: hr = | J28: =q/PI()/k*LN(D0/Ue)*ac -> 0.1618130569
E29: D0 = | F29: =D-tE-hS -> 3.1 | G29: m
E30: D1_ = | F30: =hS/2+D0 -> 3.25 | G30: m
C32: geohydraul. Druckhöhe hS | E32: hS = | F32: =tD-tE-2*_r -> 0.3 | G32: m
F33: Zielzelle | H33: Zielwert
C34: Iterative Lösung mit der | F34: =hh+hr-hS -> -5.125769197e-06 | G34: = Null | H34: 0
C35: Zielwertsuche von EXCEL
F36: veränderbare Zelle
E37: ac = | F37: 22.65494979
C38: Dränabstand a | E38: a = | F38: =ac -> 22.65494979 | G38: m | H38: =IF(D0>ac/4,"Bed. nicht erfüllt, anderen Ansatz benutzen!","Bed. ist erfüllt") -> Bed. ist erfüllt

Sheet Ernst B
A1: Dränabstandsberechnung nach Ernst (Studienblatt Nr. 12 1970, ETH Zürich)
A2: Ansatz | B2: Bedingungen | D2: Berechnungsgleichungen | I2: geohydraulisches Schema
B3: Schichtgrenze
A4: ERNST | B4: in oder oberhalb
A5: Fall B | B5: Dräntiefe
B7: 1) ko<<ku
E8: Die Variablen im grünen Feld sind einzugeben
B9: Dränabflußspende q | D9: q = | E9: 0.007 | F9: m/d
B10: Dicke obere Schicht Dob | D10: Dob = | E10: 1.1 | F10: m
B11: Dicke untere Schicht Du | D11: Du = | E11: 2.9 | F11: m
B12: gesätt. hydraul. Leitf. ko | D12: ko = | E12: 0.2 | F12: m/d
B13: gesätt. hydraul. Leitf. ku | D13: ku = | E13: 2 | F13: =IF(ko/ku>10," ko>>ku ---> Hoogh./Ernst benutzen !","") -> 
B14: Dräntiefe tD | D14: tD = | E14: 1.1 | F14: m
B15: Entwässerungstiefe tE | D15: tE = | E15: 0.6 | F15: m
B16: Dränrohrradius | D16: r = | E16: 0.1 | F16: m
B17: Reduktionsfaktor für benetz. Umfang | D17: gamma = | E17: 0.2
E18: =IF(tE>Dob,"tE > Dob ===> evtl. Modell für homogenen GWL benutzen!","") -> 
B19: Abstand GW-Stauer - Drän D0 | D19: D0 = | E19: =Dob+Du-tD+2*_r -> 3.1
B20: massgeb. Dicke für vertikale
B21: Strömungskomponente | D21: Dv = | E21: =MAX(Dob-tE,0) -> 0.5
B22: geohydraul. Druckhöhe hS | D22: hS = | E22: =tD-tE-2*_r -> 0.3
D23: D1_ = | E23: =hS/2 -> 0.15
E25: Zielzelle | F25: Zielwert
B26: Iterative Lösung mit der | E26: =hh_1+hr_1+hv-hS -> 2.578961853e-05 | F26: = 0
B27: Zielwertsuche von EXCEL | E27: veränderbare Zelle | I27: Ue = | J27: =PI()*2*_r*gamma -> 0.1256637061
D28: a1_ = | E28: 33.0285011
C29: Dränabstand a | D29: a = | E29: =a1_ -> 33.0285011 | F29: m | H29: wenn 1) erfüllt ist: | I29: hh_1 = | J29: =q/(8*ku*Du)*a1_^2 -> 0.1645726982
I30: hr_1 = | J30: =q/PI()/ku*LN(D0/Ue)*a1_ -> 0.1179530915
B31: 2) ko <> ku | I31: hv = | J31: =q*Dv/ko -> 0.0175
H33: wenn 2) erfüllt ist: | I33: hh_2 = | J33: =q/(8*(ko*D1_+ku*Du))*a2_^2 -> 0.1772167921
E34: Zielzelle | F34: Zielwert | I34: hr_2 = | J34: =q/PI()/ku*LN(D0/Ue)*a2_ -> 0.1227165534
E35: =hh_2+hr_2-hS -> -6.665447958e-05 | F35: = 0
E36: veränderbare Zelle
D37: a2_ = | E37: 34.36233649
C38: Dränabstand a | D38: a = | E38: =a2_ -> 34.36233649 | F38: m

Sheet Ernst C
A1: Dränabstandsberechnung nach Ernst (Studienblatt Nr. 12 1970, ETH Zürich)
A2: Ansatz | B2: Bedingungen | D2: Berechnungsgleichungen | I2: geohydraulisches Schema
A4: ERNST | B4: Schichtgrenze
A5: Fall C | B5: unterhalb
B6: Dräntiefe
F20: Die Variablen im grünen Feld sind einzugeben
C21: Dränabflußspende q | E21: q = | F21: 0.007 | G21: m/d
C22: Dicke obere Schicht Dob | E22: Dob = | F22: 1.5 | G22: m
C23: Dicke untere Schicht Du | E23: Du = | F23: 2.5 | G23: m | I23: Dv = | J23: =tD-tE -> 0.5
C24: gesätt. hydraul. Leitf. ko | E24: ko = | F24: 2 | G24: m/d | I24: D1 = | J24: =D0+hS/2 -> 0.75
C25: gesätt. hydraul. Leitf. ku | E25: ku = | F25: 1 | G25: m/d | I25: Ue = | J25: =PI()*2*_r*gamma -> 0.1256637061 | N25: Tab. 1 b-Werte:
C26: Dräntiefe tD | E26: tD = | F26: 1.1 | G26: m | O26: Du/D0
C27: Entwässerungstiefe tE | E27: tE = | F27: 0.6 | G27: m | I27: hh = | J27: =q/(8*(ko*D1_+ku*Du))*ac^2 -> 0.193236042 | N27: ku/ko | O27: 0.1 | P27: 0.25 | Q27: 0.5 | R27: 1 | S27: 2 | T27: 4 | U27: 7 | V27: 10 | W27: 16
C28: Dränrohrradius | E28: r = | F28: 0.1 | G28: m | I28: hr = | J28: =q/PI()/ko*LN(b*D0/Ue)*ac -> 0.1050570463 | N28: 0.1 | O28: 1 | P28: 1 | Q28: 1 | R28: 1 | S28: 1.5 | T28: 2 | U28: 4 | V28: 15 | W28: 120
C29: Reduktionsfaktor für benetz. Umfang | E29: gamma = | F29: 0.2 | G29: ku/ko = | H29: =ku/ko -> 0.5 | I29: hv = | J29: =q*Dv/ko -> 0.00175 | N29: 0.25 | O29: 1 | P29: 1 | Q29: 1 | R29: 1.5 | S29: 2 | T29: 4 | U29: 10 | V29: 20 | W29: 90
C30: Abstand GW-Stauer - Schichtgrenze D0 | E30: D0 = | F30: =Dob-tE-hS -> 0.6 | G30: Du/D0 = | H30: =Du/D0 -> 4.166666667 | N30: 0.5 | O30: 1 | P30: 1 | Q30: 1.5 | R30: 1.5 | S30: 2.5 | T30: 5 | U30: 10 | V30: 20 | W30: 40
C31: b-Wert nach Tab.1 (s. rechts) | E31: b = | F31: 5 | N31: 1 | O31: 1 | P31: 1.5 | Q31: 1.5 | R31: 2 | S31: 3 | T31: 5 | U31: 8 | V31: 10 | W31: 15
C32: geohydraul. Druckhöhe hS | E32: hS = | F32: =tD-tE-2*_r -> 0.3 | G32: m | N32: 2 | O32: 1 | P32: 1.5 | Q32: 2 | R32: 2.5 | S32: 3 | T32: 5 | U32: 6 | V32: 8 | W32: 8
F33: Zielzelle | H33: Zielwert | N33: 4 | O33: 1.5 | P33: 1.5 | Q33: 2 | R33: 2.5 | S33: 3 | T33: 4 | U33: 5 | V33: 5 | W33: 6
C34: Iterative Lösung mit der | F34: =hh+hr+hv-hS -> 4.308838782e-05 | G34: = Null | H34: 0 | N34: 10 | O34: 2 | P34: 2 | Q34: 3 | R34: 3 | S34: 4 | T34: 4 | U34: 5 | V34: 5 | W34: 4.5
C35: Zielwertsuche von EXCEL | N35: 30 | O35: 3 | P35: 3 | Q35: 3 | R35: 4 | S35: 4 | T35: 4 | U35: 4 | V35: 4 | W35: 4
F36: veränderbare Zelle
E37: ac = | F37: 29.72145292
C38: Dränabstand a | E38: a = | F38: =ac -> 29.72145292 | G38: m

Sheet Instationär
A1: Instationäre Dränformel (Glover-Dumm-Formel) für fallenden Wasserspiegel
A2: Ansatz | B2: Bedingungen | D2: Berechnungsgleichungen | I2: geohydraulisches Schema
A4: Glover- | B4: homogener
A5: Dumm | B5: Grundwasser-
B6: leiter
E19: Die Variablen im grünen Feld sind einzugeben
C20: Außenradius | D20: r_ = | E20: 0.05 | F20: m
C21: Abst. OKG - GW-Stauer D | D21: D = | E21: 3 | F21: m
C22: Dräntiefe tD | D22: tD = | E22: 1 | F22: m
C23: dränbares Porenvolumen ndr | D23: ndr = | E23: 0.05 | F23: m3/m3
C24: gesätt. hydraul. Leitf. ks | D24: ks = | E24: 0.3 | F24: m/d
C25: Entwässerungstiefe zur Zeit 0, tE.0 | D25: tE.0 = | E25: 0 | F25: m
C26: Entwässerungstiefe zur Zeit t, tE.t | D26: tE.t = | E26: 0.5 | F26: m
C27: Zeit t | D27: t = | E27: 2.24964094 | F27: d
C28: benetzter Umfang lU | D28: lU = | E28: =r_*PI() -> 0.1570796327 | F28: m | G28: der benetzte Umfang muss hier eingetragen werden, falls er
G29: anders berechnet werden soll als "lU = r_*PI()"
C30: Abst. GW-Stauer - Wassersp. im Drän D0 | D30: D0 = | E30: =D-tD+r_ -> 2.05 | F30: m
C31: geohydraul. Anfangsdruckhöhe ht=0 | D31: ht0 = | E31: =tD-tE.0-r_ -> 0.95 | F31: m
C32: geohydraul. Druckhöhe bei t, ht | D32: ht = | E32: =tD-tE.t-r_ -> 0.45 | F32: m
C33: Kriterium a/4 | D33: kri = | E33: =a.smed/4 -> 3
D34: alpha = | E34: =PI()^2*ks*de.smed/ndr/a.smed^2 -> 0.3981232699
C35: Mächtigkeit der Äquivalentschicht de | D35: de = | E35: =IF(D0<kri,D0/(8*D0/PI()/a.smed*LN(D0/lU)+1),PI()*a.smed/(8*LN(a.smed/lU))) -> 0.9681197025 | F35: m
C37: Iterative Lösung mit der | E37: Zielzelle | G37: Zielwert
C38: Zielwertsuche von EXCEL | E38: =PI()^2*ks*de.smed*t/ndr/(LN(1.16*ht0/ht))-a.smed^2 -> 0 | F38: = Null | G38: 0
E39: mögliche veränderbare Zelle
B40: Dränabstand aus | E40: 12
B41: instat. Formel | D41: a = | E41: =a.smed -> 12 | F41: m

Sheet Tabelle2

Sheet Tabelle3
